Cogmind - Beta 15 @@@ ROGUE MODE // 2025.08.31 @ 20:33:08 Player: winnking222 Result: Destroyed by BF-G2V(R) with Subdweller Machine Gun Performance ------------- Evolutions (0) 0 Regions Visited (3) 600 Robots Destroyed (37) 185 Value Destroyed (948) 948 Prototype IDs (2) 40 Alien Tech Used (0) 0 Bonus (7) 7 TOTAL SCORE: 1780 Bonus ------- Follower Combat Kills 7 Cogmind --------- Core Integrity 0/250 Matter 296/300 Energy 168/170 System Corruption 0% Temperature Cool (0) Movement Rolling (120) Ox1 Location -10/Subcaves Parts ------- > --- POWER (1) -------- Makeshift Power Source > --- PROPULSION (2) --- Subdweller Monowheel Subdweller Monowheel > --- UTILITY (2) ------ Large Storage Unit Seismic Detector > --- WEAPON (2) ------- Subdweller Machine Gun Subdweller Machine Gun > --- INVENTORY (15) --- Subdweller Power Source Subdweller Power Source Medium Matter Pod (100) Subdweller Optics Makeshift Terrain Scanner Makeshift Kinetic Plating Subdweller Laser Subdweller Beam Cannon Subdweller Beam Cannon Powered Cannon Subdweller Machine Gun Missile Launcher Shrapnel Trap Shrapnel Trap Peak State ------------ > --- POWER ------------ Nuclear Core > --- PROPULSION ------- Carbon-fiber Leg Makeshift Leg > --- UTILITY ---------- Large Storage Unit Improved Light Armor Plating > --- WEAPON ----------- Beamcaster Barrage Gun > --- INVENTORY -------- Makeshift Power Source Carbon-fiber Leg Carbon-fiber Leg Wheel Medium Matter Pod Makeshift Terrain Scanner Seismic Detector Scrap Shield EM Pulse Gun Subdweller Laser Powered Cannon Missile Launcher Shrapnel Trap [Rating: 26] Favorites ----------- Power Nuclear Core Engine Ion Engine Power Core Nuclear Core Propulsion Carbon-fiber Leg Leg Carbon-fiber Leg Wheel Subdweller Monowheel Utility Large Storage Unit Device Seismic Detector Storage Large Storage Unit Protection Scrap Shield Weapon Assault Rifle Energy Gun Subdweller Laser Ballistic Gun Assault Rifle Build | -11 -10 -10 -10 ------- Run | Yrd Mat Min Sub Slots Evolved . | . . . . Power . | . . . . Propulsion . | . . . . Utility . | . . . . Weapon . | . . . . Parts Attached 32 | 7 3 5 17 Power 3 | 1 . 1 1 Engine 2 | 1 . . 1 Core 1 | . . 1 . Reactor . | . . . . Propulsion 9 | 2 1 2 4 Treads . | . . . . Leg 7 | 2 1 2 2 Wheel 2 | . . . 2 Hover . | . . . . Flight . | . . . . Utility 8 | 2 1 1 4 Device 3 | 1 . 1 1 Storage 2 | 1 1 . . Processor . | . . . . Hackware . | . . . . Protection 3 | . . . 3 Artifact . | . . . . Weapon 12 | 2 1 1 8 Energy Gun 4 | . . . 4 Energy Cannon . | . . . . Ballistic Gun 8 | 2 1 1 4 Ballistic Cannon . | . . . . Launcher . | . . . . Special Weapon . | . . . . Impact Weapon . | . . . . Slashing Weapon . | . . . . Piercing Weapon . | . . . . Special Melee Weapon . | . . . . Unidentified Prototypes . | . . . . Parts Lost 7 | . 2 . 5 Power . | . . . . Propulsion 3 | . 1 . 2 Utility 2 | . . . 2 Weapon 2 | . 1 . 1 Highest Loss Streak 3 | . 1 . 3 To Critical Strikes . | . . . . Average Backups 11 | 5 9 14 11 Power 1 | . 1 1 1 Propulsion 3 | 2 3 6 2 Utility 3 | . 2 3 3 Weapon 3 | 1 3 3 3 Tool/Special . | . . . . Unused Backups 22 | . . 5 17 Power 4 | . . 1 3 Propulsion 6 | . . 1 5 Utility 4 | . . 1 3 Weapon 8 | . . 2 6 Tool/Special . | . . . . Average Slot Usage (%) 98 | . 99 100 97 Engine 4 | . 14 9 . Core 9 | . . 4 13 Leg 24 | . 27 28 23 Wheel 2 | . . . 4 Device 12 | . 14 14 12 Storage 13 | . 14 14 13 Energy Gun 7 | . . . 12 Ballistic Gun 20 | . 28 28 15 Peak Build Rating 26 | 7 8 17 26 Average Rating 15 | 4 7 12 19 On Entrance 8 | . 7 8 17 Naked Turns . | . . . . Heaviest Build 42 | 15 30 32 42 Greatest Support 35 | 20 20 35 35 Greatest Overweight (x) 3 | 3 2 1 2 Average Overweight (x) . | . . . . Largest Inventory Capacity 15 | 8 15 15 15 Average Capacity 14 | 7 13 15 14 Most Carried 15 | 8 15 15 15 Average Carried 12 | 6 9 14 13 Final Capacity 15 | 8 15 15 15 Final Carried 15 | 7 15 15 15 Class Distribution -------------------- 64% | Mutant 34% | Scavenger-Mutant Dominant Class ---------------- Mutant | -10/Materials Mutant | -10/Mines Scavenger-Mutant | -10/Subcaves Resources | -11 -10 -10 -10 ----------- Run | Yrd Mat Min Sub Matter Collected 1321 | 342 357 77 545 Remotely . | . . . . Salvage Created 1384 | 149 473 70 692 Parts 77 | 12 21 10 34 Haulers Intercepted 1 | . 1 . . Recyclers Shooed 2 | 1 1 . . Parts Field Recycled . | . . . . Retrieved Matter . | . . . . Parts Self-Destructed 9 | . . . 9 Prevented . | . . . . Kills | -11 -10 -10 -10 ------- Run | Yrd Mat Min Sub Combat Hostiles Destroyed 26 | . 8 3 15 Guns 26 | . 8 3 15 Classes Destroyed 9 | 2 4 1 2 Worker 1 | . . 1 . Tunneler 5 | 4 . 1 . Hauler 1 | . 1 . . Recycler 2 | 1 1 . . Watcher 2 | . 2 . . Swarmer 6 | . 3 3 . Grunt 5 | . 5 . . Sentry 2 | . . . 2 Subdweller 13 | . . . 13 Best Kill Streak 4 | 4 3 3 2 Combat Bots Only 3 | . 3 2 2 Max Kills in Single Turn 2 | 1 2 2 1 Gunslinging 1 | . 1 . . Exploded . | . . . . Melee . | . . . . Uniques/NPCs Destroyed . | . . . . Combat | -11 -10 -10 -10 -------- Run | Yrd Mat Min Sub Hostile Shots Fired 159 | . 48 7 104 Missed 43 | . 13 1 29 Hits 116 | . 35 6 75 Projectile 116 | . 35 6 75 Critical Strikes 4 | . . . 4 Damage Taken 2039 | . 423 46 1570 Core 252 | . 54 8 190 Absorbed by Shields . | . . . . Core Remaining (%) 100 | 100 . . . Volleys Fired 141 | 12 40 6 83 Largest 2 | 2 2 2 2 Hottest 120 | 40 40 40 120 Shots Fired 265 | 24 80 12 149 Gun 265 | 24 80 12 149 Cannon . | . . . . Launcher . | . . . . Special . | . . . . Kinetic 175 | 24 80 12 59 Thermal 89 | . . . 89 Explosive . | . . . . Electromagnetic 1 | . . . 1 Robot Hit Streak 42 | 5 16 3 42 Robot Miss Streak 4 | 2 4 2 3 Penetration Max . | . . . . Secondary Targets 7 | . 1 1 5 Max Gunslinging Chain 1 | . 1 1 1 Shots Hit Robots 166 | 14 47 4 101 Core Hits 57 | 6 19 5 27 Critical Kills 2 | . 1 . 1 Critical Parts Destroyed . | . . . . Critical Strikes 4 | . 1 . 3 Burn 1 | . . . 1 Destroy 3 | . 1 . 2 Melee Attacks . | . . . . Impact . | . . . . Slashing . | . . . . Piercing . | . . . . Sneak Attacks . | . . . . Combat Hostiles . | . . . . Follow-up Attacks . | . . . . Damage Inflicted 2913 | 205 621 70 2017 Guns 2903 | 205 618 63 2017 Cannons . | . . . . Explosions . | . . . . Melee . | . . . . Ramming 10 | . 3 7 . Kinetic 1539 | 205 618 63 653 Thermal 1352 | . . . 1352 Explosive . | . . . . Electromagnetic 12 | . . . 12 Impact . | . . . . Slashing . | . . . . Piercing . | . . . . Highest Corruption . | . . . . Average Corruption . | . . . . Corruption Purged . | . . . . Corruption Blocked . | . . . . Overload Shots . | . . . . Overflow Damage . | . . . . Projectiles . | . . . . Explosions . | . . . . Melee . | . . . . Knockbacks . | . . . . Impact . | . . . . Kinetic . | . . . . Secondary . | . . . . Self-Inflicted Damage . | . . . . Shots . | . . . . Rammed . | . . . . Targets Rammed 2 | . 1 1 . Kicked 2 | . 1 1 . Crushed . | . . . . Highest Temperature 90 | . 8 . 90 Average Temperature 27 | . 2 . 28 Received Heat Transfer 405 | . 174 . 231 Siege Activations . | . . . . Martial Activations . | . . . . Shielding Activations . | . . . . Robots Disrupted . | . . . . Combat Hostiles . | . . . . Robots Corrupted . | . . . . Combat Hostiles . | . . . . Parts Fried . | . . . . Impact Corruptions . | . . . . Robots Melted . | . . . . Combat Hostiles . | . . . . Parts Melted 2 | . . . 2 Heat Transferred 1831 | . . . 1831 Parts Sabotaged . | . . . . Parts Stolen . | . . . . Parts Stripped . | . . . . Power Chain Reactions . | . . . . Alert | -11 -10 -10 -10 ------- Run | Yrd Mat Min Sub Maximum Alert Level . | . . . . Low Security (%) 100 | 100 100 100 . Level 1 . | . . . . Level 2 . | . . . . Level 3 . | . . . . Level 4 . | . . . . Level 5 . | . . . . High Security . | . . . . Max Security . | . . . . Peak Influence 79 | 10 79 50 . Initial 3 | . 3 3 . Average 12 | 1 18 5 . Influence Increases 476 | 25 309 102 40 Destroy 0b10 Robot/C 280 | . 160 80 40 Destroy 0b10 Robot/NC 55 | 25 20 10 . Destroy Leader 56 | . 46 10 . Allied During Kill 2 | . . 2 . Successful Hack 37 | . 37 . . Destroy Structure 1 | . 1 . . Partial Spotted 30 | . 30 . . Lose Combat Pursuer 15 | . 15 . . Influence Decreases 476 | 20 304 112 40 Entered New Map 9 | . 2 7 . Time Decay 425 | 20 292 83 30 Lost Part 20 | . 10 . 10 Lost Ally 22 | . . 22 . Squads Dispatched 1 | . 1 . . Investigation 1 | . 1 . . Extermination . | . . . . Reinforcement . | . . . . Assault . | . . . . Garrison . | . . . . Intercept . | . . . . Searches Triggered . | . . . . Construction Impeded . | . . . . Haulers Reinforced . | . . . . Active Scanning Responses . | . . . . Cargo Convoy Interrupts . | . . . . Stealth | -11 -10 -10 -10 --------- Run | Yrd Mat Min Sub Distress Signals 1 | . . 1 . Communications Jammed . | . . . . Distress Signals . | . . . . Times Spotted 37 | . 17 3 17 Peak Tracking Total 4 | . 4 2 3 Tactical Retreats 1 | . 1 . . Traps | -11 -10 -10 -10 ------- Run | Yrd Mat Min Sub Traps Triggered 2 | . 2 . . Indirectly . | . . . . Trap Hack Attempts . | . . . . Triggered . | . . . . Disarmed 4 | . 4 . . Reprogrammed . | . . . . Reused . | . . . . Traps Extracted . | . . . . Installed . | . . . . Triggered . | . . . . Most Traps Carried 2 | . . . 2 Machines | -11 -10 -10 -10 ---------- Run | Yrd Mat Min Sub Machines Disabled 1 | . . . 1 Max in Single Turn 1 | . . . 1 Machines Repaired . | . . . . Machines Dismantled . | . . . . Machines Sabotaged . | . . . . Overloaded Fab Kills . | . . . . Hacking | -11 -10 -10 -10 --------- Run | Yrd Mat Min Sub Machines Accessed 9 | . 8 1 . Terminals 8 | . 8 . . Fabricators . | . . . . Repair Stations . | . . . . Recycling Units . | . . . . Scanalyzers . | . . . . Garrison Access . | . . . . Total Hacks 23 | . 22 1 . Successful 16 | . 15 1 . Failed 7 | . 7 . . Catastrophic 1 | . 1 . . Database Lockouts . | . . . . Manual 17 | . 17 . . Terminals 22 | . 22 . . Fabricators . | . . . . Repair Stations . | . . . . Recycling Units . | . . . . Scanalyzers . | . . . . Garrison Access . | . . . . Terminal Hacks 5 | . 4 1 . Prototype ID Bank 1 | . 1 . . Open Door 1 | . . 1 . Locate Traps 1 | . 1 . . Disarm Traps 1 | . 1 . . Zone Layout 1 | . 1 . . Fabricator Hacks . | . . . . Repair Station Hacks . | . . . . Recycling Unit Hacks . | . . . . Scanalyzer . | . . . . Garrison Access Hacks . | . . . . Unauthorized Hacks 11 | . 11 . . Terminals 11 | . 11 . . Botnet 4 | . 4 . . Skim 7 | . 7 . . Fabricators . | . . . . Repair Stations . | . . . . Recycling Units . | . . . . Scanalyzers . | . . . . Garrison Access . | . . . . Data Cores Recovered . | . . . . Used . | . . . . Hacking Detections 7 | . 7 . . Full Trace Events 2 | . 2 . . Feedback Events . | . . . . Feedback Blocked . | . . . . Robot Schematics Acquired . | . . . . Robots Built . | . . . . Authchips . | . . . . Time . | . . . . Total Robot Build Rating . | . . . . Part Schematics Acquired . | . . . . Parts Built . | . . . . Authchips . | . . . . Time . | . . . . Total Part Build Rating . | . . . . Parts Repaired . | . . . . Time . | . . . . Parts Recycled . | . . . . Recycled Matter . | . . . . Retrieved Matter . | . . . . Retrieved Components . | . . . . Parts Scanalyzed . | . . . . Part Schematics Acquired . | . . . . Parts Damaged . | . . . . Bothacking | -11 -10 -10 -10 ------------ Run | Yrd Mat Min Sub Used RIF Installer . | . . . . Robots Hacked . | . . . . Non-combat . | . . . . Combat . | . . . . Robot Hacks Applied . | . . . . Relay Couplers Released . | . . . . Fabnet Peak Effective % . | . . . . Robots Rewired . | . . . . Allies Hacked . | . . . . Hacks Repelled . | . . . . Allies | -11 -10 -10 -10 -------- Run | Yrd Mat Min Sub Total Allies 2 | . . 2 . Largest Group 2 | . . 2 . Highest-Rated Group 52 | . . 52 . Highest-Rated Ally 31 | . . 31 . Total Orders . | . . . . Ally Attacks 2 | . . 2 . Total Damage 40 | . . 40 . Kills 1 | . . 1 . Allies Corrupted . | . . . . Allies Melted . | . . . . Intel | -11 -10 -10 -10 ------- Run | Yrd Mat Min Sub Active Infowar (turns) 5038 | 31 1172 781 3054 Seismic 5038 | 31 1172 781 3054 Robot Analysis Total . | . . . . Derelict Logs Recovered 4 | . . 2 2 Drone Launches . | . . . . Drone Recoveries . | . . . . Exploration | -11 -10 -10 -10 ------------- Run | Yrd Mat Min Sub Turns Passed 5621 | 134 1172 781 3534 Spaces Moved 3003 | 68 557 481 1897 Core 23 | 23 . . . Treads . | . . . . Legs 2375 | 45 557 481 1292 Wheels 605 | . . . 605 Hover . | . . . . Flight . | . . . . Fastest Speed 50 | 50 120 130 110 Average Speed 160 | 116 175 152 159 Slowest Speed 260 | 200 260 190 200 Overloaded Moves . | . . . . Propulsion Burnouts . | . . . . Robots Hopped . | . . . . Potential Cave-ins . | . . . . Cave-ins Triggered . | . . . . Exploration Rate (%) 68 | 4 96 88 86 Regions Visited 3 Branch Regions 2 Pre-discovered Areas 1 | . . 1 . Known Exits Taken 2 | . 1 1 . Unknown Exits Taken 1 | 1 . . . Scrap Searched 12 | . . 1 11 Spaces Dug . | . . . . Terrain Destroyed . | . . . . Melee . | . . . . Projectile . | . . . . AOE . | . . . . Terrain Rammed . | . . . . Walls Destroyed . | . . . . Machines Disabled . | . . . . Actions | -11 -10 -10 -10 --------- Run | Yrd Mat Min Sub Total 3557 | 97 671 522 2267 Wait 245 | . 60 11 174 Move 3000 | 67 556 480 1897 Hop . | . . . . Pick Up 83 | 11 10 8 54 Fast Attach 5 | 3 . . 2 Attach 21 | 4 2 . 15 Detach . | . . . . Swap 16 | . 1 5 10 Drop 37 | . 1 11 25 Fire 141 | 12 40 6 83 Melee . | . . . . Ram . | . . . . Kick 2 | . 1 1 . Crush . | . . . . Escape Stasis . | . . . . Rewire . | . . . . Trap . | . . . . Miscellaneous 7 | . . . 7 Route ------- -11/Scrapyard -10/Materials (discovered 6 exits: *Mat x3 / *Min x2 / *Sub) -10/Mines (discovered 3 exits: *Mat x2 / *Sub) -10/Subcaves (discovered 2 exits: Mat / Rec) History --------- Turn | Location | Event 8 | -11/Scrapyard | Discovered new exit (range 15) 135 | -11/Scrapyard | Entered Materials 251 | -10/Materials | Discovered new exit (range 16) 307 | -10/Materials | Build established: Mutant 498 | -10/Materials | Discovered new exit (range 4) 520 | -10/Materials | Discovered new exit (range 12) 644 | -10/Materials | Discovered new exit (range 5) 806 | -10/Materials | Discovered new exit (range 16) 998 | -10/Materials | Discovered new exit (range 12) 1088 | -10/Materials | Learned location of 2 exits from Subcaves 1138 | -10/Materials | Learned 2 Storage zone layouts 1163 | -10/Materials | Identified exit to Materials 1163 | -10/Materials | Identified exit to Mines 1163 | -10/Materials | Identified exit to Subcaves 1307 | -10/Materials | Entered Mines 1317 | -10/Mines | Learned location of Zion (-7) 1472 | -10/Mines | Met a Derelict bent on vengeance 1475 | -10/Mines | Discovered exit to Materials (range 12) 1490 | -10/Mines | Learned Materials garrison access intel 1817 | -10/Mines | Met a Derelict who couldn't figure out how to use a Trap Extractor 1941 | -10/Mines | Found a Scrap Suit stashed away for nefarious purposes 1966 | -10/Mines | Discovered exit to Subcaves (range 6) 2012 | -10/Mines | Discovered exit to Materials (range 12) 2088 | -10/Mines | Entered Subcaves 2088 | -10/Subcaves | Learned Materials stockpile data 2089 | -10/Subcaves | Approached by a straggling Scientist 2089 | -10/Subcaves | Identified exit to Materials 2089 | -10/Subcaves | Identified exit to Recycling 2170 | -10/Subcaves | Shifting Twisted Machinery released Barrage Gun 2186 | -10/Subcaves | Shifting Twisted Machinery released Shrapnel Trap 2627 | -10/Subcaves | Visited 4L-MR0's lab 2648 | -10/Subcaves | Found Prototype Energy Cannon 2706 | -10/Subcaves | Build established: Scavenger-Mutant 3323 | -10/Subcaves | Core integrity fell below 50% 3363 | -10/Subcaves | Lost 3 parts (2n1u) 3601 | -10/Subcaves | Build established: Mutant 4495 | -10/Subcaves | Core integrity fell below 20% 5090 | -10/Subcaves | A swath of the cavern ceiling suddenly collapsed 5163 | -10/Subcaves | Build established: Scavenger-Mutant 5621 | -10/Subcaves | Disturbed a concealed Subdweller 5622 | -10/Subcaves | Destroyed by BF-G2V(R) with Subdweller Machine Gun Last Messages --------------- 05300_ Acquired 10 matter. 05323_ Acquired Lrg. Storage Unit. 05325_ Acquired Shrapnel Trap. 05328_ Acquired Missile Launcher. 05330_ Acquired Sub. Power Source. 05335_ Acquired Corrupted Sub. Optics. 05338_ Acquired Sub. Monowheel. 05339_ Extracted 10 matter. 05341_ Acquired Med. Matter Pod. 05343_ Acquired Sub. Beam Cannon. 05353_ Acquired Sub. Laser. 05363_ Acquired Shrapnel Trap. 05365_ Acquired 10 matter. 05368_ Dropped Carbon-fiber Leg. 05370_ Acquired 10 matter. 05372_ Acquired Sub. Beam Cannon. 05373_ Dropped Nuclear Core. 05378_ Acquired Sub. Machine Gun. 05379_ Acquired 10 matter. 05621_ BF-G2V(R) angrily emerges from the Twisted Machinery. Map ----- +----------------------------------------------------+ | | | | | | | | | | | | | ?????????????????????????????????????????????????? | | ?????????????????????????????????????????????????? | | ?????????????????????????????????????????????????? | | ?????????????????????????????????????????????????? | | ?????????????????????????????????????????????????? | | ?????????????????????????????????????????????????? | | ?????????????????????????????????????????????????? | | ?????????????????????????????????????????????????? | | ?????????????????????????????????????????????????? | | ?????????????????????????????????????????????????? | | ?????????????????????????????????????????????????? | | ?????????????????????????????????????????????????? | | ?????????????????????????????????????????????????? | | ?????????????????????????????????????????????????? | | ?????????#########???????????????????????????????? | | ????????## #???????????????????????????????? | | ????????# ###?????????????????????????????? | | ???????## ##????????????????????????????? | | ######## ### #??#######???????????????????? | | # # #### #?#<@ <#???????????????????? | | ### ##R##$$#???????????????????? | | ######## ##?#???????????????????? | | ###### ##????## "######????????????????? | | ##????# ##???## ## ## ##???????????????? | | #???## #???#" " ## #???????????????? | | #??### ##### # ##??????????????? | | #?## ### ## ##?????????????? | | # ### ##?## #?????????????? | | #### ##??# #?????????????? | | ## #??## ### #?????????????? | | #???###?## #????????????? | | ### #???????## ### #????????????? | | ## ##?## ##????????## ####?# #????????????? | | ?#######????##??????????###????# ##????????????? | | ???????????????????????????????# #?????????????? | | ???????????????????????????????# ?????????????? | | ???????????????????????????????# #????????????? | | ???????????????????????????????# ##????????????? | | ???????????????????????????????## ?????????????? | | ????????????????????????????????# #?????????????? | | ????????????????????????????????# #?????????????? | | ???????????????????????????????? #?????????????? | | ???????????????????????????????? ##????????????? | | ????????????????????????????????#^ #????????????? | +----------------------------------------------------+ Best States ------------- Heat Dissipation 25 Energy Generation 15 Energy Capacity 250 Matter Stores 300 Matter Capacity 300 Sight Range 16 Terrain Scan Density 10 Armor Coverage 800 Resistance: KI 10 Evasion (%) 55 Item Schematics ----------------- None Robot Schematics ------------------ None Fabricated ------------ Nothing Repaired ---------- Nothing Alien Tech Used ----------------- None Achievements -------------- None Challenges ------------ None Game ------ Seed StormCompactDiverter Manual? 0 Play Time 00:28:29 Cumulative 159.1 hours Start 2025.08.31 @ 19:54:35 End 2025.08.31 @ 20:33:08 Sessions 1 Manual Loads 0 Difficulty Rogue Special Mode None Game No. 223 Rogue 223 Adventurer 0 Explorer 0 Win Type - Total 1 Types 1/0/0/0/0/0/0/0/0/0 Lore% 71 Gallery% 66 Achievement% 57 Wizard Run 0 Options --------- Layout 0 ASCII 0 Keyboard 0 Movement Mouse Keybinds 0 Fullscreen 1 Font 16/SmallcapsGlow Map View 75x55 Zoom Use 0% Tactical HUD 1 Map Filters NONE Filters NONE Steam 1 RUN: dce0f613-9819-4a32-853c-c2e156339635